bitfinex-derivatives/quotes_SOLF0:USTF0_20241009
["timestamp","ask_amount","ask_price","bid_price","bid_amount"]
[1728471114619,0.12502,142.67,142.65,10.79]
[1728471114823,0.12502,142.67,142.65,14.2975]
[1728471115628,0.12502,142.67,142.65,14.3445369]
[1728471115830,0.12502,142.67,142.66,3.5074]
[1728471116031,0.12502,142.67,142.66,4.9338]
[1728471119135,4.98,142.74,142.66,1.4264]
[1728471119339,4.98,142.74,142.72,10.79]
[1728471119535,3.5059,142.72,142.71,10.79]
[1728471120332,4.98,142.74,142.71,10.79]
[1728471120533,3.63082,142.73,142.72,10.79]
[1728471124832,4.98,142.76,142.72,14.2959]
[1728471124833,3.505,142.76,142.72,14.2959]
[1728471125134,0.12502,142.79,142.74,10.79]
[1728471125334,0.12502,142.79,142.76,10.79]
[1728471125641,10.91502,142.79,142.73,10.79]
[1728471125940,15.77,142.78,142.73,10.79]
[1728471126138,4.98,142.78,142.75,10.79]
[1728471126837,3.505,142.76,142.75,10.79]
[1728471133151,3.5047,142.77,142.75,10.79]
[1728471133748,3.505,142.76,142.75,10.79]
[1728471138544,3.5054,142.75,142.73,10.79]
[1728471138755,15.77,142.78,142.73,10.79]
[1728471138947,3.5048,142.77,142.73,10.79]
[1728471139153,15.77,142.78,142.73,10.79]
[1728471139742,3.5054,142.75,142.73,10.79]
[1728471140352,15.77,142.78,142.73,10.79]
[1728471140554,3.5055,142.74,142.73,10.79]
[1728471141956,15.77,142.78,142.71,2.7145]
[1728471142155,10.79,142.75,142.7,4.98]
[1728471142359,10.79,142.72,142.67,0.12502]
[1728471142563,10.79,142.71,142.67,0.12502]
[1728471142768,3.5069,142.68,142.67,0.12502]
[1728471144750,3.5069,142.68,142.67,10.91502]
[1728471148065,3.5069,142.68,142.67,0.12502]
[1728471150262,3.5069,142.68,142.67,10.91502]
[1728471152663,3.5069,142.68,142.67,0.12502]
[1728471164970,4.98,142.7,142.67,10.91502]
[1728471165278,3.5068,142.69,142.67,10.91502]
[1728471167069,3.5069,142.68,142.67,10.91502]
[1728471173276,4.98,142.7,142.67,14.42202]
[1728471173277,3.5066,142.7,142.67,14.42202]
[1728471173669,15.77,142.72,142.67,14.42202]
[1728471174476,3.5066,142.7,142.67,14.42202]
[1728471174976,3.5063,142.71,142.68,3.5067]
[1728471175177,4.98,142.72,142.69,10.79]
[1728471175567,3.5064,142.71,142.69,10.79]
[1728471176482,4.98,142.72,142.69,10.79]
[1728471176483,3.5064,142.7,142.69,10.79]
[1728471177380,10.79,142.74,142.69,10.79]
[1728471177586,15.77,142.74,142.69,10.79]
[1728471178268,75.68,142.78,142.68,4.98]
[1728471178472,4.98,142.8,142.74,10.79]
[1728471178695,15.77,142.8,142.74,10.79]
[1728471179372,3.5051,142.76,142.74,10.79]
[1728471179870,3.5052,142.75,142.74,10.79]
[1728471180272,15.77,142.8,142.74,10.79]
[1728471180484,3.5051,142.76,142.74,10.79]
[1728471180686,10.91502,142.79,142.73,10.79]
[1728471181075,3.5052,142.75,142.73,10.79]
[1728471181277,10.91502,142.79,142.73,10.79]
[1728471181586,3.5052,142.76,142.74,10.79]
[1728471181783,10.91502,142.79,142.74,10.79]
[1728471183085,10.79,142.78,142.74,10.79]
[1728471183287,10.79,142.78,142.73,10.79]
[1728471183594,4.98,142.77,142.72,1.4164]
[1728471183887,4.98,142.77,142.72,12.2064]
[1728471184081,3.5057,142.73,142.72,1.4164]
[1728471184281,10.79,142.75,142.71,10.79]
[1728471184884,3.5059,142.72,142.71,10.79]
[1728471195197,4.98,142.77,142.71,10.79]
[1728471195198,3.5058,142.73,142.71,10.79]
[1728471195400,3.5058,142.73,142.72,10.79]
[1728471200509,4.98,142.77,142.72,10.79]
[1728471200714,4.98,142.77,142.74,10.79]
[1728471201206,3.5052,142.75,142.74,10.79]
[1728471208918,4.96,142.78,142.69,4.98]
[1728471209123,3.5058,142.73,142.69,4.98]
[1728471209413,3.5058,142.73,142.72,10.79]
[1728471211321,4.96,142.78,142.68,1.3703]
[1728471211523,3.5061,142.72,142.69,8.4665]
[1728471211723,3.5061,142.72,142.71,10.79]
[1728471213727,3.5061,142.72,142.7,3.5064]
[1728471213929,3.5061,142.72,142.71,10.79]
[1728471218632,3.5064,142.71,142.68,9.837]
[1728471218935,4.96,142.75,142.71,10.79]
[1728471219127,3.5059,142.72,142.71,10.79]
[1728471228042,3.5058,142.73,142.71,10.79]
[1728471228340,3.5058,142.73,142.72,10.79]
[1728471239041,4.96,142.77,142.72,10.79]
[1728471239351,4.96,142.77,142.75,10.79]
[1728471239554,3.505,142.76,142.75,10.79]
[1728471250360,3.5046,142.78,142.75,14.2952]
[1728471250660,0.12502,142.79,142.78,10.79]
[1728471252262,0.12502,142.79,142.78,14.2945]
[1728471252458,0.12502,142.79,142.78,10.79]
[1728471253862,3.62922,142.79,142.78,10.79]
[1728471254066,0.12502,142.79,142.76,3.50490252]
[1728471254263,0.12502,142.79,142.77,10.79]
[1728471255064,0.12502,142.79,142.76,10.79]
[1728471255462,3.5045,142.78,142.76,10.79]
[1728471255671,0.12502,142.79,142.76,10.79]
[1728471256070,10.79,142.78,142.73,10.79]
[1728471256369,15.75,142.78,142.72,1.4136]
[1728471256557,3.5057,142.73,142.72,12.2036]
[1728471265768,3.5057,142.73,142.72,1.4136]
[1728471266073,3.5057,142.73,142.72,12.2036]
[1728471276987,3.5057,142.73,142.72,1.4136]
[1728471278782,3.5057,142.73,142.72,12.2036]
[1728471287299,3.5057,142.73,142.72,1.4136]
[1728471289302,3.5059,142.72,142.71,10.79]
[1728471289501,10.79,142.76,142.69,19.2566]
[1728471290202,3.5063,142.71,142.69,19.2566]
[1728471291506,3.5059,142.72,142.7,3.5062]
[1728471291803,3.5059,142.72,142.71,10.79]
[1728471299699,3.5056,142.72,142.71,10.79]
[1728471300201,17.1798,142.78,142.71,10.79]
[1728471300405,3.5055,142.73,142.71,14.2958]
[1728471301304,6.3898,142.78,142.71,14.2958]
[1728471301507,6.3898,142.78,142.72,3.5055]
[1728471301699,17.1798,142.78,142.73,10.79]
[1728471302304,3.5051,142.74,142.73,10.79]
[1728471303408,6.3898,142.78,142.73,10.79]
[1728471303600,0.12502,142.79,142.74,10.79]
[1728471303801,4.96,142.78,142.74,10.79]
[1728471304609,3.5048,142.76,142.74,10.79]
[1728471307521,3.5049,142.75,142.74,10.79]
[1728471307814,3.5049,142.75,142.73,14.2952]
[1728471309819,3.5049,142.75,142.73,10.79]
[1728471310719,3.5049,142.75,142.72,3.5055]
[1728471310921,3.5055,142.73,142.72,10.79]
[1728471320027,3.5055,142.73,142.72,10.79]
[1728471327037,10.79,142.76,142.67,2.94112]
[1728471327238,15.75,142.75,142.69,10.79]
[1728471328539,3.5061,142.7,142.69,10.79]
[1728471356459,3.5057,142.72,142.7,3.506]
[1728471356656,8.359,142.77,142.7,3.506]
[1728471356853,4.96,142.76,142.71,10.79]
[1728471357054,3.5056,142.72,142.71,10.79]
[1728471357257,3.5056,142.72,142.7,14.2959]
[1728471360764,3.5056,142.72,142.7,10.79]
[1728471362658,3.5056,142.72,142.71,10.79]
[1728471363062,4.96,142.77,142.73,3.5053]
[1728471363266,4.96,142.77,142.75,10.79]
[1728471363460,3.5052,142.74,142.73,10.79]
[1728471363960,3.5054,142.73,142.71,3.5057]
[1728471364153,3.5054,142.73,142.72,10.79]
[1728471368275,3.5052,142.74,142.72,10.79]
[1728471368974,15.75,142.77,142.72,10.79]
[1728471369186,3.5053,142.73,142.72,10.79]
[1728471370987,10.79,142.76,142.69,6.364]
[1728471371189,10.79,142.76,142.69,9.8702]
[1728471371485,10.79,142.76,142.7,10.79]
[1728471372282,3.5051,142.75,142.7,10.79]
[1728471372487,10.79,142.76,142.7,10.79]
[1728471373191,3.5058,142.71,142.7,10.79]
[1728471373390,10.79,142.74,142.68,1.3508]
[1728471373582,10.79,142.73,142.68,12.1408]
[1728471373777,10.79,142.73,142.68,10.79]
[1728471373778,3.5063,142.69,142.68,10.79]
[1728471390502,10.79,142.72,142.67,1.50572]
[1728471390799,3.5066,142.68,142.67,1.50572]
[1728471391794,3.5066,142.68,142.67,12.29572]
[1728471393207,3.5066,142.68,142.67,1.50572]
[1728471393503,3.5066,142.68,142.67,12.29572]
[1728471402510,3.5066,142.68,142.67,0.12502]
[1728471403413,3.5062,142.7,142.67,10.91502]
[1728471403615,3.5062,142.7,142.68,10.79]
[1728471404512,3.5063,142.69,142.68,10.79]
[1728471411526,10.79,142.72,142.68,10.79]
[1728471411723,3.506,142.71,142.68,14.2964]
[1728471412618,3.5061,142.7,142.68,14.2964]
[1728471413319,3.5061,142.7,142.68,10.79]
[1728471421325,4.94,142.73,142.68,10.79]
[1728471421522,3.5063,142.69,142.68,10.79]
[1728471423129,3.5063,142.69,142.67,14.42172]
[1728471424820,3.5062,142.7,142.67,14.42172]
[1728471425029,3.5062,142.7,142.68,3.5065]
[1728471426023,3.5058,142.72,142.69,14.2962]
[1728471427229,4.94,142.74,142.69,14.2962]
[1728471427428,3.5059,142.71,142.69,14.2962]
[1728471428935,3.5057,142.72,142.69,14.2962]
[1728471432236,4.94,142.74,142.69,14.2962]
[1728471432539,3.5059,142.71,142.69,14.2962]
[1728471439440,3.5059,142.71,142.69,3.5062]
[1728471439640,3.5059,142.71,142.7,10.79]
[1728471454754,3.5055,142.73,142.71,3.5058]
[1728471454961,3.5055,142.73,142.72,10.79]
[1728471456656,3.5055,142.73,142.72,14.2956]
[1728471458860,3.5055,142.73,142.72,10.79]
[1728471464960,15.73,142.77,142.7,4.94]
[1728471465169,3.5058,142.72,142.7,10.79]
[1728471465671,10.79,142.75,142.7,10.79]
[1728471465976,10.79,142.72,142.67,1.43702]
[1728471466159,10.79,142.72,142.67,12.22702]
[1728471467164,3.5065,142.69,142.67,12.22702]
[1728471467470,10.79,142.72,142.67,12.22702]
[1728471467868,3.5066,142.68,142.67,12.22702]
[1728471472677,10.79,142.72,142.67,12.22702]
[1728471472976,3.5069,142.68,142.67,12.22702]
[1728471474375,3.5069,142.68,142.67,10.91502]
[1728471477380,3.5069,142.68,142.67,0.12502]
[1728471481680,14.2969,142.68,142.67,0.12502]
[1728471488482,3.5083,142.63,142.61,0.12502]
[1728471494693,108.94783137,142.65,142.61,0.12502]
[1728471494893,3.5084,142.62,142.61,0.12502]
[1728471499393,7.13682,142.73,142.61,15.85502]
[1728471499599,10.79,142.71,142.66,10.79]
[1728471499783,10.79,142.71,142.67,3.52030586]
[1728471499988,10.79,142.71,142.66,10.79]
[1728471500594,3.5066,142.7,142.67,3.507]
[1728471500797,10.79,142.71,142.67,3.507]
[1728471501288,3.5065,142.7,142.66,14.3162695]
[1728471501693,15.73,142.72,142.66,14.3162695]
[1728471502296,15.73,142.72,142.67,3.5071]
[1728471503496,3.5067,142.69,142.67,3.5071]
[1728471508405,3.5067,142.69,142.66,17.8235695]
[1728471508710,10.79,142.7,142.64,4.94]
[1728471509003,10.79,142.7,142.64,15.73]
[1728471509208,10.79,142.68,142.64,3.5078]
[1728471509403,10.79,142.68,142.63,17.166]
[1728471509905,3.5076,142.66,142.64,10.79]
[1728471510407,3.5076,142.66,142.64,14.2978]
[1728471511608,3.5076,142.66,142.64,10.79]
[1728471514903,3.5076,142.66,142.64,14.2979]
[1728471523509,3.5073,142.67,142.65,14.2977]
[1728471525117,3.5073,142.67,142.65,17.71706812]
[1728471526321,3.5073,142.67,142.65,14.2977]
[1728471526619,3.5073,142.67,142.65,17.73425263]
[1728471527321,3.5073,142.67,142.65,14.2977]
[1728471527721,3.5073,142.67,142.65,17.83726007]
[1728471528220,3.5073,142.67,142.65,14.2977]
[1728471528823,3.5073,142.67,142.65,17.84778299]
[1728471529022,3.5073,142.67,142.65,14.2977]
[1728471529723,3.5073,142.67,142.65,17.8867178]
[1728471530925,0.12502,142.73,142.66,10.79]
[1728471531124,3.5066,142.7,142.68,3.5068]
[1728471531319,3.5066,142.7,142.68,14.2968]
[1728471533025,15.85502,142.73,142.68,10.79]
[1728471533225,3.5067,142.69,142.68,10.79]
[1728471537332,3.5067,142.69,142.67,3.507]
[1728471537333,15.85502,142.73,142.65,3.5890178]
[1728471537522,10.79,142.71,142.65,17.8864178]
[1728471538430,10.79,142.7,142.65,17.8864178]
[1728471538620,7.80382,142.73,142.66,10.79]
[1728471538822,10.79,142.72,142.67,3.5071]
[1728471539025,3.5068,142.69,142.67,7.04837072]
[1728471539230,3.5068,142.69,142.67,3.5071]
[1728471540326,7.80382,142.73,142.68,10.79]
[1728471540626,17.19292,142.73,142.68,10.79]
[1728471541332,17.19292,142.73,142.68,14.2968]
[1728471542432,3.5064,142.7,142.68,14.2968]
[1728471545830,3.5064,142.7,142.6,22.60679321]
[1728471545831,38.79,142.69,142.6,15.58939321]
[1728471546029,3.5084,142.62,142.57,10.79]
[1728471546631,3.5084,142.62,142.58,3.45168171]
[1728471551643,3.5084,142.62,142.58,4.78068171]
[1728471553341,3.5084,142.62,142.58,15.57068171]
[1728471554339,3.5084,142.62,142.58,4.78068171]
[1728471554536,3.5084,142.62,142.58,15.57068171]
[1728471554737,10.79,142.66,142.61,10.91502]
[1728471555044,4.94,142.65,142.61,10.91502]
[1728471555737,3.5083,142.63,142.61,10.91502]
[1728471556445,3.5084,142.62,142.61,10.91502]
[1728471559845,4.94,142.66,142.61,10.91502]
[1728471560046,3.5082,142.63,142.61,10.91502]
[1728471563153,3.5082,142.63,142.61,10.91502]
[1728471566357,3.5082,142.63,142.62,10.79]
[1728471570755,4.94,142.67,142.61,0.12502]
[1728471570957,3.5084,142.62,142.61,0.12502]
[1728471571157,3.5084,142.62,142.61,10.91502]
[1728471596680,3.5083,142.63,142.61,14.42362]
[1728471598373,4.94,142.65,142.61,10.91502]
[1728471599070,3.5083,142.63,142.61,14.42352]
[1728471600481,3.5083,142.63,142.61,14.42362]
[1728471601580,3.5077,142.65,142.63,3.508]
[1728471601878,3.5077,142.65,142.64,10.79]
[1728471603077,3.5074,142.67,142.64,14.2978]
[1728471604185,3.5075,142.66,142.64,14.2978]
[1728471604779,15.73,142.69,142.64,10.79]
[1728471604981,3.5077,142.65,142.63,10.79]
[1728471605178,10.79,142.68,142.63,10.79]
[1728471605782,3.508,142.64,142.63,10.79]
[1728471607089,10.79,142.67,142.61,0.12502]
[1728471607289,3.5084,142.62,142.61,0.12502]
[1728471612193,3.5084,142.62,142.61,10.91502]
[1728471614299,4.94,142.66,142.61,10.91502]
[1728471614595,3.5083,142.63,142.61,14.42362]
[1728471617111,4.94,142.66,142.61,10.91502]
[1728471617112,3.5084,142.62,142.61,10.91502]
[1728471618412,3.5083,142.63,142.61,14.42362]
[1728471624811,4.94,142.66,142.61,10.91502]
[1728471625004,3.508,142.64,142.62,3.5084]
[1728471626117,3.5084,142.62,142.61,0.12502]
[1728471630418,3.5083,142.63,142.61,0.12502]
[1728471630720,3.5083,142.63,142.61,3.63352]
[1728471631417,3.5081,142.64,142.62,10.79]
[1728471631617,10.79,142.63,142.58,6.96098171]
[1728471631914,15.73,142.63,142.57,14.33391531]
[1728471632121,15.73,142.63,142.57,10.79]
[1728471632325,3.509,142.6,142.57,14.2994]
[1728471632709,3.509,142.6,142.57,17.86401329]
[1728471639525,6.3344,142.65,142.59,10.79]
[1728471639726,4.94,142.65,142.62,10.79]
[1728471640530,3.5084,142.63,142.62,10.79]
[1728471649732,15.73,142.65,142.57,3.56275299]
[1728471649926,3.5093,142.59,142.57,4.87]
[1728471650131,3.5093,142.59,142.57,8.3587314]
[1728471651039,3.509,142.6,142.57,8.3587314]
[1728471651230,3.509,142.6,142.59,10.79]
[1728471657536,4.94,142.62,142.59,10.79]
[1728471659236,4.94,142.62,142.57,4.8492314]
[1728471659435,4.94,142.62,142.58,10.79]
[1728471661042,10.79,142.63,142.58,10.79]
[1728471661242,4.94,142.62,142.58,10.79]
[1728471662941,4.94,142.61,142.58,10.79]
[1728471663239,4.94,142.61,142.57,1.3605]
[1728471663440,4.94,142.61,142.58,10.79]
[1728471664242,4.94,142.61,142.59,10.79]
[1728471667943,4.94,142.62,142.59,10.79]
[1728471669743,10.79,142.65,142.59,10.79]
[1728471669943,4.94,142.64,142.59,10.79]
[1728471671542,15.73,142.64,142.59,10.79]
[1728471681265,10.79,142.64,142.59,10.79]
[1728471681456,10.79,142.65,142.59,10.79]
[1728471681764,4.94,142.64,142.59,10.79]
[1728471687562,4.94,142.64,142.6,10.79]
[1728471688662,98.15599346,142.66,142.63,10.79]
[1728471688853,98.15599346,142.66,142.64,10.79]
[1728471690759,98.15599346,142.66,142.63,10.79]
[1728471691257,108.94599346,142.66,142.59,1.3913]
[1728471691458,10.79,142.65,142.59,12.1813]
[1728471691659,4.92,142.64,142.59,1.3913]
[1728471691963,4.92,142.64,142.6,10.79]
[1728471698371,4.92,142.64,142.59,1.3913]
[1728471698868,15.71,142.64,142.59,1.3913]
[1728471699073,15.71,142.64,142.58,10.79]
[1728471700665,15.71,142.64,142.57,9.74083969]
[1728471700864,15.71,142.64,142.58,10.79]
[1728471701274,10.79,142.63,142.58,10.79]
[1728471701474,10.79,142.63,142.57,1.3605]
[1728471701772,10.79,142.63,142.57,12.1505]
[1728471703168,10.79,142.63,142.58,10.79]
[1728471703372,4.92,142.62,142.58,10.79]
[1728471707380,4.92,142.62,142.57,12.1505]
[1728471708077,15.71,142.62,142.57,12.1505]
[1728471711282,15.71,142.62,142.57,1.3605]
[1728471718986,4.92,142.62,142.57,1.3605]
[1728471719182,4.92,142.61,142.58,10.79]
[1728471720488,10.79,142.63,142.58,10.79]
[1728471720679,4.92,142.63,142.59,10.79]
[1728471722179,100.86739346,142.66,142.6,10.79]
[1728471722490,99.50269346,142.66,142.63,10.79]
[1728471723882,98.15599346,142.66,142.63,10.79]
[1728471724785,0.12502,142.67,142.64,10.79]
[1728471725285,0.12502,142.67,142.64,14.24994164]
[1728471725480,0.12502,142.67,142.65,10.79]
[1728471725688,0.12502,142.67,142.65,12.1324]
[1728471726391,0.12502,142.67,142.65,1.3424]
[1728471726894,0.12502,142.67,142.63,12.1402]
[1728471727194,10.91502,142.67,142.63,1.3502]
[1728471729694,0.12502,142.67,142.63,12.1402]
[1728471731102,10.91502,142.67,142.62,10.79]
[1728471731293,4.92,142.66,142.62,10.79]
[1728471733195,4.92,142.66,142.63,10.79]
[1728471733400,4.92,142.66,142.64,10.79]
[1728471743703,4.92,142.66,142.61,10.79]
[1728471745807,4.92,142.66,142.63,10.79]
[1728471746196,4.92,142.66,142.64,10.79]
[1728471747611,0.12502,142.67,142.65,10.79]
[1728471747804,0.12502,142.67,142.66,10.79]
[1728471750412,0.12502,142.67,142.64,1.4322]
[1728471750608,0.12502,142.67,142.64,12.2222]
[1728471762925,5.04502,142.67,142.59,1.3933]
[1728471763225,5.04502,142.67,142.63,10.79]
[1728471771131,5.04502,142.67,142.65,10.79]
[1728471772824,5.04502,142.67,142.64,10.79]
[1728471780332,0.12502,142.67,142.63,10.79]
[1728471781034,0.12502,142.67,142.61,12.1077]
[1728471782030,10.91502,142.67,142.61,1.3177]
[1728471787738,10.91502,142.67,142.62,10.79]
[1728471791540,10.91502,142.67,142.61,12.1077]
[1728471794546,15.83502,142.67,142.62,10.79]
[1728471794746,5.04502,142.67,142.63,10.79]
[1728471795144,0.12502,142.67,142.63,10.79]
[1728471795340,0.12502,142.67,142.63,14.28876593]
[1728471797943,0.12502,142.67,142.66,10.79]
[1728471802747,4.92,142.72,142.66,10.79]
[1728471802948,4.92,142.72,142.68,10.79]
[1728471804249,15.83502,142.73,142.68,10.79]
[1728471808054,5.04502,142.73,142.68,10.79]
[1728471809151,5.04502,142.73,142.69,10.79]
[1728471809451,0.12502,142.73,142.71,10.79]
[1728471809756,0.12502,142.73,142.7,10.79]
[1728471811357,0.12502,142.73,142.71,10.79]
[1728471813454,0.12502,142.73,142.72,10.79]
[1728471814153,0.12502,142.73,142.72,14.36888505]
[1728471835766,0.12502,142.73,142.72,10.79]
[1728471835967,0.12502,142.73,142.7,73.8166813]
[1728471836166,0.12502,142.73,142.7,83.2212813]
[1728471836378,0.12502,142.73,142.7,81.7817813]
[1728471841068,0.12502,142.73,142.7,70.9917813]
[1728471841272,10.91502,142.73,142.68,10.79]
[1728471841472,4.92,142.72,142.68,10.79]
[1728471841671,4.92,142.72,142.69,10.79]
[1728471845287,4.92,142.72,142.65,2.7125]
[1728471845473,4.92,142.72,142.67,10.79]
[1728471846373,15.71,142.72,142.67,10.79]
[1728471849281,4.92,142.72,142.68,10.79]
[1728471849772,4.92,142.72,142.69,10.79]
[1728471850674,0.12502,142.73,142.69,10.79]
[1728471856983,10.79,142.72,142.65,2.7125]
[1728471857380,4.92,142.71,142.66,10.79]
[1728471858382,15.71,142.71,142.66,10.79]
[1728471859287,10.79,142.69,142.64,72.01069298]
[1728471859479,10.79,142.68,142.64,72.01069298]
[1728471859678,15.71,142.68,142.64,72.01069298]
[1728471860389,15.71,142.68,142.62,10.79]
[1728471863276,4.92,142.68,142.64,10.79]
[1728471864884,15.71,142.68,142.64,10.79]
[1728471865094,10.79,142.67,142.62,10.79]
[1728471865278,10.79,142.66,142.61,1.52992]
[1728471865480,10.79,142.64,142.61,0.12502]
[1728471865680,15.71,142.64,142.61,0.12502]
[1728471871694,10.79,142.63,142.61,0.12502]
[1728471876201,4.92,142.62,142.61,0.12502]
[1728471902517,10.79,142.65,142.61,0.12502]
[1728471902721,4.92,142.64,142.61,10.91502]
[1728471903619,4.92,142.64,142.61,0.12502]
[1728471911024,4.92,142.64,142.61,10.91502]
[1728471911227,2.8294,142.72,142.63,10.79]
[1728471911529,15.71,142.69,142.63,10.79]
[1728471911822,10.79,142.68,142.62,12.1276]
[1728471912021,10.79,142.66,142.62,1.3376]
[1728471912324,15.71,142.66,142.61,0.12502]
[1728471912625,10.79,142.65,142.61,0.12502]
[1728471914628,15.71,142.66,142.61,0.12502]
[1728471921028,4.92,142.66,142.61,0.12502]
[1728471931639,4.92,142.66,142.61,10.91502]
[1728471954357,10.79,142.64,142.61,0.12502]
[1728471954543,4.92,142.63,142.61,0.12502]
[1728471955054,15.71,142.63,142.61,0.12502]
[1728471956754,4.92,142.63,142.61,0.12502]
[1728471961266,15.71,142.63,142.61,0.12502]
[1728471964157,4.92,142.63,142.61,0.12502]
[1728471964656,4.9,142.65,142.61,0.12502]
[1728471964865,4.9,142.65,142.61,1.43422]
[1728471965259,108.93885618,142.67,142.62,10.79]
[1728471965469,98.14885618,142.67,142.63,14.33525694]
[1728471965662,98.14885618,142.67,142.62,2.7163]
[1728471965855,98.14885618,142.67,142.62,13.5063]
[1728471966259,108.93885618,142.67,142.62,13.5063]
[1728471966670,98.14885618,142.67,142.62,13.5063]
[1728471968155,15.69,142.68,142.62,13.5063]
[1728471968569,15.69,142.68,142.63,5.33038921]
[1728471968755,4.9,142.68,142.64,5.33038921]
[1728471968961,4.9,142.68,142.65,5.33038921]
[1728471969162,4.9,142.68,142.63,14.21160129]
[1728471969471,4.9,142.68,142.64,5.33032361]
[1728471969669,4.9,142.68,142.65,5.33032361]
[1728471970063,15.69,142.69,142.64,10.79]
[1728471970265,15.69,142.69,142.65,5.3303561]
[1728471970467,15.69,142.69,142.64,10.79]
[1728471970666,15.69,142.69,142.65,5.33046863]
[1728471970867,15.69,142.69,142.64,10.79]
[1728471971068,15.69,142.69,142.65,5.33032717]
[1728471971268,15.69,142.69,142.64,10.79]
[1728471971469,15.69,142.69,142.65,5.3301868]
[1728471971665,15.69,142.69,142.64,10.79]
[1728471971871,15.69,142.69,142.65,5.33014667]
[1728471972070,15.69,142.69,142.64,10.79]
[1728471972370,15.69,142.69,142.65,5.33014797]
[1728471972568,15.69,142.69,142.64,10.79]
[1728471972772,15.69,142.69,142.65,5.33014797]
[1728471973076,15.69,142.69,142.64,10.79]
[1728471973678,15.69,142.69,142.65,5.33022943]
[1728471973875,410.74,142.78,142.66,5.33022943]
[1728471974175,15.69,142.72,142.67,17.51242943]
[1728471974379,103.01550176,142.72,142.68,5.33022943]
[1728471974582,103.01550176,142.72,142.69,5.33022943]
[1728471974772,103.01550176,142.72,142.67,12.1822]
[1728471974974,103.01550176,142.72,142.68,5.32732847]
[1728471975173,103.01550176,142.72,142.69,5.32732847]
[1728471975472,103.01550176,142.72,142.67,12.1822]
[1728471975672,103.01550176,142.72,142.68,5.32541103]
[1728471975873,103.01550176,142.72,142.69,5.32541103]
[1728471976073,103.01550176,142.72,142.67,12.1822]
[1728471976268,113.80550176,142.72,142.67,12.1822]
[1728471976486,103.01550176,142.72,142.67,12.1822]
[1728471976875,103.01550176,142.72,142.68,5.3238515]
[1728471977285,103.01550176,142.72,142.67,12.1822]
[1728471977488,103.01550176,142.72,142.68,5.32228819]
[1728471977687,103.01550176,142.72,142.67,12.1822]
[1728471977899,103.01550176,142.72,142.68,5.32228082]
[1728471978192,103.01550176,142.72,142.67,12.1822]
[1728471978389,103.01550176,142.72,142.68,5.32091174]
[1728471978587,113.80550176,142.72,142.67,12.1822]
[1728471978781,108.90550176,142.72,142.68,16.26403905]
[1728471979106,98.11550176,142.72,142.69,16.26403905]
[1728471979390,0.12502,142.73,142.7,5.47403905]
[1728471979586,0.12502,142.73,142.71,5.47403905]